bitfinex-derivatives/quotes_BNBF0:USTF0_20250221
["timestamp","ask_amount","ask_price","bid_price","bid_amount"]
[1740134494519,4.42981291,661.5,660.61,0.29346584]
[1740134494719,4.42981291,661.49,660.61,0.29346584]
[1740134494922,1.10746102,661.48,660.61,0.29346584]
[1740134495122,1.10746102,661.47,660.61,0.29346584]
[1740134495319,1.10746102,661.46,660.61,0.29346584]
[1740134495522,1.10746102,661.45,660.61,0.29346584]
[1740134495722,1.10746102,661.44,660.61,0.29346584]
[1740134495923,1.10746102,661.43,660.61,0.29346584]
[1740134496123,1.10746102,661.42,660.61,0.29346584]
[1740134496324,1.10746102,661.41,660.61,0.29346584]
[1740134496524,1.10746102,661.4,660.61,0.29346584]
[1740134496722,2.40169877,661.43,660.61,0.29346584]
[1740134496723,1.10746102,661.39,660.61,0.29346584]
[1740134496922,1.10746102,661.38,660.61,0.29346584]
[1740134497123,1.10746102,661.37,660.61,0.29346584]
[1740134497323,2.40169877,661.43,660.61,0.29346584]
[1740134497324,1.10746102,661.36,660.61,0.29346584]
[1740134497518,1.10746102,661.35,660.61,0.29346584]
[1740134497725,1.10746102,661.34,660.61,0.29346584]
[1740134498022,1.10746102,661.33,660.61,0.29346584]
[1740134498230,1.10746102,661.32,660.61,0.29346584]
[1740134498424,1.10746102,661.31,660.61,0.29346584]
[1740134498621,1.10746102,661.3,660.61,0.29346584]
[1740134498822,1.10746102,661.29,660.71,1.12158951]
[1740134499027,1.10746102,661.28,660.71,1.12158951]
[1740134499222,1.10746102,661.27,660.71,1.12158951]
[1740134499427,1.10746102,661.26,660.71,1.12158951]
[1740134499628,1.10746102,661.25,660.71,1.12158951]
[1740134499828,1.10746102,661.24,660.71,1.12158951]
[1740134500029,1.10746102,661.23,660.71,1.12158951]
[1740134500223,1.10746102,661.22,660.71,1.12158951]
[1740134500427,1.10746102,661.21,660.71,1.12158951]
[1740134500623,1.10746102,661.2,660.71,1.12158951]
[1740134500825,1.10746102,661.19,660.71,1.12158951]
[1740134501025,1.10746102,661.18,660.71,1.12158951]
[1740134501330,1.182,661.89,660.65,1.12158951]
[1740134501331,1.10746102,661.17,660.65,1.12158951]
[1740134501529,1.10746102,661.16,660.65,1.12158951]
[1740134501730,1.10746102,661.15,660.65,1.12158951]
[1740134502030,1.10746102,661.14,660.65,1.12158951]
[1740134502229,1.10746102,661.13,660.65,1.12158951]
[1740134502430,1.10746102,661.12,660.65,1.12158951]
[1740134502725,1.10746102,661.11,660.65,1.12158951]
[1740134502923,1.10746102,661.1,660.65,1.12158951]
[1740134503125,1.10746102,661.09,660.65,1.12158951]
[1740134503430,1.10746102,661.09,660.61,0.29346584]
[1740134503431,1.10746102,661.08,660.72,1.12158951]
[1740134503631,1.10746102,661.07,660.72,1.12158951]
[1740134503826,1.10746102,661.06,660.72,1.12158951]
[1740134504130,1.182,661.89,660.72,1.12158951]
[1740134504131,1.10746102,661.05,660.72,1.12158951]
[1740134504328,1.10746102,661.04,660.72,1.12158951]
[1740134504528,1.10746102,661.03,660.72,1.12158951]
[1740134504725,1.10746102,661.02,660.72,1.12158951]
[1740134504929,1.10746102,661.01,660.72,1.12158951]
[1740134505129,1.10746102,661.0,660.61,0.29346584]
[1740134505326,1.10746102,660.99,660.61,0.29346584]
[1740134505531,1.10746102,660.98,660.61,0.29346584]
[1740134505726,1.10746102,660.97,660.61,0.29346584]
[1740134505929,1.10746102,660.96,660.61,0.29346584]
[1740134506130,1.10746102,660.95,660.61,0.29346584]
[1740134506327,1.10746102,660.94,660.61,0.29346584]
[1740134506531,1.10746102,660.93,660.61,0.29346584]
[1740134506732,1.10746102,660.92,660.61,0.29346584]
[1740134507033,1.10746102,660.91,660.61,0.29346584]
[1740134507230,1.10746102,660.9,660.61,0.29346584]
[1740134507527,1.10746102,660.89,660.61,0.29346584]
[1740134507731,1.10746102,660.88,660.61,0.29346584]
[1740134507931,1.10746102,660.87,660.61,0.29346584]
[1740134508231,1.10746102,660.86,660.61,0.29346584]
[1740134508431,1.10746102,660.85,660.61,0.29346584]
[1740134508634,1.10746102,660.84,660.61,0.29346584]
[1740134508827,1.10746102,660.83,660.61,0.29346584]
[1740134509026,1.10746102,660.82,660.61,0.29346584]
[1740134509333,1.10746102,660.81,660.61,0.29346584]
[1740134509533,1.10746102,660.8,660.61,0.29346584]
[1740134509729,1.10746102,660.79,660.61,0.29346584]
[1740134509928,1.10746102,660.78,660.61,0.29346584]
[1740134510133,1.10746102,660.77,660.61,0.29346584]
[1740134510334,1.10746102,660.76,660.61,0.29346584]
[1740134510531,1.10746102,660.75,660.61,0.29346584]
[1740134510728,1.10746102,660.74,660.61,0.29346584]
[1740134510933,3.28061864,661.72,660.61,0.29346584]
[1740134511133,4.374162,661.71,660.61,0.29346584]
[1740134511329,4.374162,661.7,660.61,0.29346584]
[1740134511633,4.374162,661.69,660.61,0.29346584]
[1740134511833,4.374162,661.68,660.61,0.29346584]
[1740134512033,4.374162,661.67,660.61,0.29346584]
[1740134512237,4.374162,661.66,660.61,0.29346584]
[1740134512434,1.09354336,661.65,660.61,0.29346584]
[1740134512631,1.09354336,661.64,660.61,0.29346584]
[1740134512832,1.09354336,661.63,660.61,0.29346584]
[1740134513031,1.09354336,661.62,660.61,0.29346584]
[1740134513233,1.09354336,661.61,660.61,0.29346584]
[1740134513429,1.09354336,661.6,660.61,0.29346584]
[1740134513633,1.09354336,661.59,660.61,0.29346584]
[1740134513835,1.09354336,661.58,660.61,0.29346584]
[1740134514035,1.09354336,661.57,660.61,0.29346584]
[1740134514232,2.45194153,661.6,660.61,0.29346584]
[1740134514233,1.09354336,661.56,660.61,0.29346584]
[1740134514430,1.09354336,661.55,660.61,0.29346584]
[1740134514634,1.09354336,661.54,660.61,0.29346584]
[1740134514936,3.54548489,661.53,660.61,0.29346584]
[1740134515131,1.09354336,661.52,660.61,0.29346584]
[1740134515334,1.09354336,661.51,660.61,0.29346584]
[1740134515532,1.09354336,661.5,660.61,0.29346584]
[1740134515733,1.09354336,661.49,660.61,0.29346584]
[1740134515933,1.09354336,661.48,660.61,0.29346584]
[1740134516134,1.09354336,661.47,660.61,0.29346584]
[1740134516331,1.09354336,661.46,660.61,0.29346584]
[1740134516635,1.09354336,661.45,660.61,0.29346584]
[1740134516835,1.09354336,661.44,660.61,0.29346584]
[1740134517028,1.09354336,661.43,660.61,0.29346584]
[1740134517233,1.09354336,661.42,660.61,0.29346584]
[1740134517432,1.09354336,661.41,660.61,0.29346584]
[1740134517634,1.09354336,661.4,660.61,0.29346584]
[1740134517833,1.09354336,661.39,660.61,0.29346584]
[1740134518035,1.09354336,661.38,660.61,0.29346584]
[1740134518335,1.09354336,661.37,660.61,0.29346584]
[1740134518528,1.09354336,661.36,660.61,0.29346584]
[1740134518732,1.09354336,661.35,660.61,0.29346584]
[1740134518934,1.09354336,661.34,660.61,0.29346584]
[1740134519130,1.09354336,661.33,660.61,0.29346584]
[1740134519334,1.09354336,661.32,660.61,0.29346584]
[1740134519636,1.09354336,661.31,660.61,0.29346584]
[1740134519835,1.09354336,661.3,660.61,0.29346584]
[1740134520138,1.09354336,661.29,660.61,0.29346584]
[1740134520337,1.09354336,661.28,660.61,0.29346584]
[1740134520533,1.09354336,661.27,660.61,0.29346584]
[1740134520734,1.09354336,661.26,660.61,0.29346584]
[1740134520933,1.09354336,661.25,660.61,0.29346584]
[1740134521131,1.09354336,661.24,660.61,0.29346584]
[1740134521334,1.09354336,661.23,660.61,0.29346584]
[1740134521532,1.09354336,661.22,660.61,0.29346584]
[1740134521733,1.09354336,661.21,660.61,0.29346584]
[1740134521936,1.09354336,661.2,660.61,0.29346584]
[1740134522134,1.09354336,661.19,660.61,0.29346584]
[1740134522338,1.09354336,661.18,660.61,0.29346584]
[1740134522638,1.09354336,661.17,660.61,0.29346584]
[1740134522839,1.09354336,661.16,660.61,1.41505535]
[1740134523037,1.09354336,661.15,660.61,1.41505535]
[1740134523238,1.09354336,661.14,660.61,1.41505535]
[1740134523436,1.09354336,661.13,660.61,1.41505535]
[1740134523632,1.09354336,661.12,660.61,1.41505535]
[1740134523833,1.09354336,661.11,660.61,1.41505535]
[1740134524033,1.09354336,661.1,660.61,1.41505535]
[1740134524340,1.09354336,661.09,660.61,1.41505535]
[1740134524539,1.09354336,661.08,660.61,1.41505535]
[1740134524735,1.09354336,661.07,660.67,1.12158951]
[1740134524942,1.09354336,661.06,660.68,0.30271841]
[1740134525239,1.09354336,661.05,660.68,0.30271841]
[1740134525439,1.09354336,661.04,660.68,0.30271841]
[1740134525641,1.09354336,661.03,660.68,0.30271841]
[1740134525838,1.09354336,661.02,660.68,0.30271841]
[1740134526038,1.09354336,661.01,660.68,0.30271841]
[1740134526241,1.09354336,661.0,660.68,0.30271841]
[1740134526436,1.442,661.86,660.68,0.30271841]
[1740134526640,1.09326834,661.85,660.68,0.30271841]
[1740134526939,1.09326834,661.84,660.68,0.30271841]
[1740134527138,1.09326834,661.83,660.68,0.30271841]
[1740134527340,1.09326834,661.82,660.68,0.30271841]
[1740134527642,1.09326834,661.81,660.68,0.30271841]
[1740134527836,1.09326834,661.8,660.68,0.30271841]
[1740134528039,1.09326834,661.79,660.68,0.30271841]
[1740134528241,1.09326834,661.78,660.68,0.30271841]
[1740134528441,1.09326834,661.77,660.68,0.30271841]
[1740134528742,1.09326834,661.76,660.68,0.30271841]
[1740134528935,1.09326834,661.75,660.68,0.30271841]
[1740134529136,1.09326834,661.74,660.68,0.30271841]
[1740134529341,1.09326834,661.73,660.68,0.30271841]
[1740134529537,1.09326834,661.72,660.68,0.30271841]
[1740134529737,1.09326834,661.71,660.68,0.30271841]
[1740134529938,1.09326834,661.7,660.68,0.30271841]
[1740134530143,1.09326834,661.69,660.68,0.30271841]
[1740134530343,1.09326834,661.68,660.68,0.30271841]
[1740134530544,1.09326834,661.67,660.68,0.30271841]
[1740134530839,1.09326834,661.66,660.68,0.30271841]
[1740134531039,1.09326834,661.65,660.68,0.30271841]
[1740134531240,1.09326834,661.64,660.68,0.30271841]
[1740134531445,1.09326834,661.63,660.68,0.30271841]
[1740134531638,1.09326834,661.62,660.68,0.30271841]
[1740134531842,1.09326834,661.61,660.68,0.30271841]
[1740134532043,1.09326834,661.6,660.68,0.30271841]
[1740134532242,1.09326834,661.59,660.68,0.30271841]
[1740134532443,1.09326834,661.58,660.68,0.30271841]
[1740134532644,1.09326834,661.57,660.68,0.30271841]
[1740134532845,1.09326834,661.56,660.68,0.30271841]
[1740134533041,1.09326834,661.55,660.68,0.30271841]
[1740134533242,1.09326834,661.54,660.68,0.30271841]
[1740134533443,1.09326834,661.53,660.68,0.30271841]
[1740134533645,1.09326834,661.52,660.68,0.30271841]
[1740134533845,1.09326834,661.51,660.68,0.30271841]
[1740134534048,1.09326834,661.5,660.68,0.30271841]
[1740134534346,1.09326834,661.49,660.68,0.30271841]
[1740134534542,1.09326834,661.48,660.68,0.30271841]
[1740134534744,1.09326834,661.47,660.68,0.30271841]
[1740134534944,1.09326834,661.46,660.68,0.30271841]
[1740134535142,1.09326834,661.45,660.68,0.30271841]
[1740134535342,1.09326834,661.44,660.68,0.30271841]
[1740134535541,1.09326834,661.43,660.68,0.30271841]
[1740134535745,1.09326834,661.42,660.68,0.30271841]
[1740134535944,1.09326834,661.41,660.68,0.30271841]
[1740134536147,1.09326834,661.4,660.68,0.30271841]
[1740134536443,1.09326834,661.39,660.68,0.30271841]
[1740134536643,1.09326834,661.38,660.68,0.30271841]
[1740134536947,1.09326834,661.37,660.68,0.30271841]
[1740134537152,1.09326834,661.36,660.68,0.30271841]
[1740134537350,1.09326834,661.35,660.68,0.30271841]
[1740134537644,1.09326834,661.34,660.68,0.30271841]
[1740134537843,1.09326834,661.33,660.68,0.30271841]
[1740134538048,1.09326834,661.32,660.68,0.30271841]
[1740134538251,1.09326834,661.31,660.68,0.30271841]
[1740134538449,1.09326834,661.3,660.68,0.30271841]
[1740134538649,1.09326834,661.29,660.68,0.30271841]
[1740134538950,1.09326834,661.28,660.68,0.30271841]
[1740134539151,1.09326834,661.27,660.68,0.30271841]
[1740134539351,1.09326834,661.26,660.68,0.30271841]
[1740134539649,1.09326834,661.25,660.68,0.30271841]
[1740134539850,1.09326834,661.24,660.68,0.30271841]
[1740134540149,1.09326834,661.23,660.68,0.30271841]
[1740134540349,1.09326834,661.22,660.68,0.30271841]
[1740134540550,1.09326834,661.21,660.68,0.30271841]
[1740134540745,1.09326834,661.2,660.68,0.30271841]
[1740134540944,1.09326834,661.19,660.68,0.30271841]
[1740134541147,1.09326834,661.18,660.68,0.30271841]
[1740134541343,1.09326834,661.17,660.68,0.30271841]
[1740134541547,1.09326834,661.16,660.68,0.30271841]
[1740134541749,1.09326834,661.15,660.68,0.30271841]
[1740134541946,1.09326834,661.14,660.68,0.30271841]
[1740134542149,1.09326834,661.13,660.68,0.30271841]
[1740134542351,1.09326834,661.12,660.68,0.30271841]
[1740134542550,1.09326834,661.11,660.68,0.30271841]
[1740134542752,1.09326834,661.1,660.68,0.30271841]
[1740134543052,1.09326834,661.09,660.68,0.30271841]
[1740134543252,1.09326834,661.08,660.68,0.30271841]
[1740134543451,0.30215588,661.91,660.68,0.30271841]
[1740134543452,1.09326834,661.07,660.68,0.30271841]
[1740134543651,1.09326834,661.06,660.68,0.30271841]
[1740134543846,0.30215588,661.91,660.68,0.30271841]
[1740134543847,1.09326834,661.05,660.68,0.30271841]
[1740134544046,1.09326834,661.04,660.68,0.30271841]
[1740134544251,1.09326834,661.03,660.68,0.30271841]
[1740134544447,1.09326834,661.02,660.68,0.30271841]
[1740134544647,1.09326834,661.01,660.68,0.30271841]
[1740134544848,1.09326834,661.0,660.68,0.30271841]
[1740134545047,1.09326834,660.99,660.68,0.30271841]
[1740134545252,1.09326834,660.98,660.68,0.30271841]
[1740134545554,1.09326834,660.97,660.68,0.30271841]
[1740134545753,1.09177517,660.96,660.68,0.30271841]
[1740134545954,0.30215588,661.91,660.68,0.30271841]
[1740134546152,1.09177795,661.9,660.68,0.30271841]
[1740134546453,1.09177795,661.89,660.68,0.30271841]
[1740134546652,1.09177795,661.88,660.68,0.30271841]
[1740134546853,1.09177795,661.87,660.68,0.30271841]
[1740134547048,1.09177795,661.86,660.68,0.30271841]
[1740134547253,1.09177795,661.85,660.68,0.30271841]
[1740134547554,1.09177795,661.84,660.68,0.30271841]
[1740134547749,1.09177795,661.83,660.68,0.30271841]
[1740134547950,1.09177795,661.82,660.68,0.30271841]
[1740134548148,1.09177795,661.81,660.68,0.30271841]
[1740134548348,1.09177795,661.8,660.68,0.30271841]
[1740134548552,2.44897809,662.45,660.68,0.30271841]
[1740134548553,1.09177795,661.79,660.68,0.30271841]
[1740134548752,1.09177795,661.78,660.68,0.30271841]
[1740134548949,2.44897809,662.59,660.68,0.30271841]
[1740134548950,1.09177795,661.77,660.68,0.30271841]
[1740134549152,1.09177795,661.76,660.68,0.30271841]
[1740134549354,1.09177795,661.75,660.68,0.30271841]
[1740134549553,1.09177795,661.74,660.68,0.30271841]
[1740134549755,1.09177795,661.73,660.68,0.30271841]
[1740134549955,1.09177795,661.72,660.68,0.30271841]
[1740134550156,1.09177795,661.71,660.68,0.30271841]
[1740134550457,1.09177795,661.7,660.68,0.30271841]
[1740134550657,1.09177795,661.69,660.68,0.30271841]
[1740134550859,1.09177795,661.68,660.68,0.30271841]
[1740134551159,1.08933421,661.67,660.68,0.30271841]
[1740134551360,1.08933421,661.66,660.68,0.30271841]
[1740134551552,1.08933421,661.65,660.68,0.30271841]
[1740134551753,1.08933421,661.64,660.68,0.30271841]
[1740134551958,1.08933421,661.63,660.88,1.12214052]
[1740134552158,1.08933421,661.62,660.89,0.30262222]
[1740134552355,2.44897809,662.57,660.89,0.30262222]
[1740134552356,1.08933421,661.61,660.89,0.30262222]
[1740134552658,1.08933421,661.6,660.89,0.30262222]
[1740134552859,1.08933421,661.59,660.89,0.30262222]
[1740134553053,1.08933421,661.58,660.89,0.30262222]
[1740134553255,1.08933421,661.57,660.89,0.30262222]
[1740134553459,1.08933421,661.56,660.89,0.30262222]
[1740134553659,1.08933421,661.55,660.89,0.30262222]
[1740134553860,1.08933421,661.54,660.89,0.30262222]
[1740134554055,1.08933421,661.53,660.89,0.30262222]
[1740134554260,1.08933421,661.52,660.89,0.30262222]
[1740134554460,1.08933421,661.51,660.89,0.30262222]
[1740134554760,1.08933421,661.5,660.89,0.30262222]
[1740134554961,1.08933421,661.49,660.89,0.30262222]
[1740134555161,1.08933421,661.48,660.89,0.30262222]
[1740134555361,2.44897809,662.56,660.89,0.30262222]
[1740134555561,1.08651077,662.55,660.89,0.30262222]
[1740134555757,1.08651077,662.54,660.89,0.30262222]
[1740134555965,1.08651077,662.53,660.89,0.30262222]
[1740134556161,1.08651077,662.52,660.89,0.30262222]
[1740134556362,1.08651077,662.51,660.89,0.30262222]
[1740134556562,1.08651077,662.5,660.89,0.30262222]
[1740134556759,1.08609036,662.49,660.89,0.30262222]
[1740134556959,1.08609036,662.48,660.89,0.30262222]
[1740134557262,1.08609036,662.47,660.89,0.30262222]
[1740134557464,1.08609036,662.46,660.89,0.30262222]
[1740134557666,1.08609036,662.45,660.89,0.30262222]
[1740134557965,1.08609036,662.44,660.89,0.30262222]
[1740134558164,1.08609036,662.43,660.89,0.30262222]
[1740134558365,1.08609036,662.42,660.89,0.30262222]
[1740134558564,1.08609036,662.41,660.89,0.30262222]
[1740134558766,1.08609036,662.4,660.89,0.30262222]
[1740134559067,1.08609036,662.39,660.89,0.30262222]
[1740134559260,1.08609036,662.38,660.89,0.30262222]
[1740134559463,0.30185945,662.56,660.89,0.30262222]
[1740134559464,1.08609036,662.37,660.89,0.30262222]
[1740134559665,1.08609036,662.36,660.89,0.30262222]
[1740134559965,1.08609036,662.35,660.89,0.30262222]
[1740134560168,1.08609036,662.34,660.89,0.30262222]
[1740134560464,1.08609036,662.33,660.89,0.30262222]
[1740134560666,1.08609036,662.32,660.89,0.30262222]
[1740134560966,1.08609036,662.31,660.89,0.30262222]
[1740134561164,1.08609036,662.3,660.89,0.30262222]
[1740134561366,1.08609036,662.29,660.89,0.30262222]
[1740134561566,1.08609036,662.28,660.89,0.30262222]
[1740134561863,1.08609036,662.27,660.89,0.30262222]
[1740134562066,1.08609036,662.26,660.89,0.30262222]
[1740134562365,1.08609036,662.25,660.89,0.30262222]
[1740134562566,1.08457787,662.24,660.89,0.30262222]
[1740134562866,2.44897809,662.55,660.89,0.30262222]
[1740134563067,1.38643901,662.54,660.89,0.30262222]
[1740134563268,1.38644357,662.53,660.89,0.30262222]
[1740134563464,1.38644812,662.52,660.89,0.30262222]
[1740134563665,1.38645268,662.51,660.89,0.30262222]
[1740134563868,1.08457045,662.5,660.89,0.30262222]
[1740134564167,1.08457045,662.49,660.89,0.30262222]
[1740134564368,1.08457045,662.48,660.89,0.30262222]
[1740134564567,1.08457045,662.47,660.89,0.30262222]
[1740134564868,1.08457045,662.46,660.89,0.30262222]
[1740134565067,1.08457045,662.45,660.89,0.30262222]
[1740134565267,1.08457045,662.44,660.89,0.30262222]
[1740134565461,1.08457045,662.43,660.89,0.30262222]
[1740134565662,1.08457045,662.42,660.89,0.30262222]
[1740134565863,1.08457045,662.41,660.89,0.30262222]
[1740134566067,1.08457045,662.4,660.89,0.30262222]
[1740134566366,1.08457045,662.39,660.89,0.30262222]
[1740134566567,1.08457045,662.38,660.89,0.30262222]
[1740134566765,4.33664197,662.37,660.89,0.30262222]
[1740134566969,4.33664197,662.36,660.89,0.30262222]
[1740134567172,4.33664197,662.35,660.89,0.30262222]
[1740134567372,1.08457045,662.34,660.89,0.30262222]
[1740134567574,1.08457045,662.33,660.89,0.30262222]
[1740134567773,1.08457045,662.32,660.89,0.30262222]
[1740134568074,1.08457045,662.31,660.89,0.30262222]
[1740134568275,1.3865484,662.3,660.89,0.30262222]
[1740134568469,1.08457045,662.29,660.89,0.30262222]
[1740134568676,1.08457045,662.28,660.89,0.30262222]
[1740134568875,1.08457045,662.27,660.89,0.30262222]
[1740134569070,1.08457045,662.26,660.89,0.30262222]
[1740134569275,4.33696638,662.25,660.89,0.30262222]
[1740134569470,4.33696638,662.24,660.89,0.30262222]
[1740134569673,4.33696638,662.23,660.89,0.30262222]
[1740134569870,4.33696638,662.22,660.89,0.30262222]
[1740134570077,4.33696638,662.21,660.89,0.30262222]
[1740134570277,4.33696638,662.2,660.89,0.30262222]
[1740134570576,4.33696638,662.19,660.89,0.30262222]
[1740134570777,4.33696638,662.18,660.89,0.30262222]
[1740134570978,4.33696638,662.17,660.89,0.30262222]
[1740134571181,4.33696638,662.16,660.89,0.30262222]
[1740134571375,2.43066522,662.22,660.89,0.30262222]
[1740134571376,4.33696638,662.15,660.89,0.30262222]
[1740134571575,4.33696638,662.14,660.89,0.30262222]
[1740134571878,4.33696638,662.13,660.89,0.30262222]
[1740134572072,4.33696638,662.12,660.89,0.30262222]
[1740134572274,4.33696638,662.11,660.89,0.30262222]
[1740134572470,4.33696638,662.1,660.89,0.30262222]
[1740134572779,4.33696638,662.09,660.89,0.30262222]
[1740134573077,4.33696638,662.08,660.89,0.30262222]
[1740134573277,4.33696638,662.07,660.89,0.30262222]
[1740134573474,4.33696638,662.06,660.89,0.30262222]
[1740134573671,4.33696638,662.05,660.89,0.30262222]
[1740134573872,4.33696638,662.04,660.89,0.30262222]
[1740134574071,1.08457045,662.03,660.89,0.30262222]
[1740134574277,2.43066522,662.08,660.89,0.30262222]
[1740134574278,1.08457045,662.02,660.89,0.30262222]
[1740134574575,1.08457045,662.01,660.89,0.30262222]
[1740134574777,1.08457045,662.0,660.89,0.30262222]
[1740134575077,1.08457045,661.99,660.89,0.30262222]
[1740134575378,1.08457045,661.98,660.89,0.30262222]
[1740134575577,1.08457045,661.97,660.89,0.30262222]
[1740134575773,1.08457045,661.96,660.89,0.30262222]
[1740134575975,1.08457045,661.95,660.89,0.30262222]
[1740134576174,1.08457045,661.94,660.89,0.30262222]
[1740134576371,1.08457045,661.93,660.89,0.30262222]
[1740134576577,1.08457045,661.92,660.89,0.30262222]
[1740134576778,1.08457045,661.91,660.89,0.30262222]
[1740134577078,1.08457045,661.9,660.89,0.30262222]
[1740134577280,1.08457045,661.89,660.89,0.30262222]
[1740134577475,1.08457045,661.88,660.89,0.30262222]
[1740134577779,1.08457045,661.87,660.89,0.30262222]
[1740134577980,1.08457045,661.86,660.89,0.30262222]
[1740134578181,1.08457045,661.85,660.89,0.30262222]
[1740134578381,1.08457045,661.84,660.89,0.30262222]
[1740134578679,1.08457045,661.83,660.89,0.30262222]
[1740134578879,1.08457045,661.82,660.89,0.30262222]
[1740134579180,1.08457045,661.81,660.89,0.30262222]
[1740134579380,1.08457045,661.8,660.89,0.30262222]
[1740134579578,1.57814779,662.04,660.89,0.30262222]
[1740134579579,1.08457045,661.79,660.89,0.30262222]
[1740134579773,1.08457045,661.78,660.89,0.30262222]
[1740134579979,1.08457045,661.77,660.89,0.30262222]
[1740134580178,1.08457045,661.76,660.89,0.30262222]
[1740134580376,1.08457045,661.75,660.89,0.30262222]
[1740134580579,1.08457045,661.74,660.89,0.30262222]
[1740134580776,1.08457045,661.73,660.89,0.30262222]
[1740134580980,1.08457045,661.72,660.89,0.30262222]
[1740134581180,1.08457045,661.71,660.89,0.30262222]
[1740134581380,1.08457045,661.7,660.89,0.30262222]
[1740134581581,1.08457045,661.69,660.89,0.30262222]
[1740134581782,1.08457045,661.68,660.89,0.30262222]
[1740134581977,1.08457045,661.67,660.89,0.30262222]
[1740134582183,1.08457045,661.66,660.89,0.30262222]
[1740134582484,1.08457045,661.65,660.89,0.30262222]
[1740134582781,1.08457045,661.64,660.89,0.30262222]
[1740134582984,1.08457045,661.63,660.89,0.30262222]
[1740134583284,1.08457045,661.62,660.89,0.30262222]
[1740134583483,1.08457045,661.61,660.89,0.30262222]
[1740134583683,1.08457045,661.6,660.89,0.30262222]
[1740134583886,1.08457045,661.59,660.89,0.30262222]
[1740134584080,1.08457045,661.58,660.89,0.30262222]
[1740134584285,1.08457045,661.57,660.89,0.30262222]
[1740134584587,1.08457045,661.56,660.89,0.30262222]
[1740134584886,1.08457045,661.55,660.89,0.30262222]
[1740134585086,1.08457045,661.54,660.89,0.30262222]
[1740134585386,1.08457045,661.53,660.89,0.30262222]
[1740134585579,1.08457045,661.52,660.89,0.30262222]
[1740134585783,1.08457045,661.51,660.89,0.30262222]
[1740134585984,1.08457045,661.5,660.89,0.30262222]
[1740134586282,1.08457045,661.49,660.89,0.30262222]
[1740134586487,1.08457045,661.48,660.89,0.30262222]
[1740134586686,1.08653128,661.47,660.89,0.30262222]
[1740134586986,3.25515793,662.16,660.89,0.30262222]
[1740134587483,2.43523282,662.19,660.89,0.30262222]
[1740134587690,1.08649236,662.18,660.89,0.30262222]
[1740134588390,2.43523282,662.19,660.89,0.30262222]
[1740134588690,1.08653246,662.18,660.89,0.30262222]
[1740134588887,2.43523282,662.19,660.89,0.30262222]
[1740134589688,1.08663512,662.18,660.89,0.30262222]
[1740134589889,2.43523282,662.19,660.89,0.30262222]
[1740134589890,1.08663512,662.17,660.89,0.30262222]
[1740134590091,1.08663512,662.16,660.89,0.30262222]
[1740134590285,1.08663512,662.15,660.89,0.30262222]
[1740134590485,1.08663512,662.14,660.89,0.30262222]
[1740134590689,1.08663512,662.13,660.89,0.30262222]
[1740134590889,1.08663512,662.12,660.89,0.30262222]
[1740134591092,1.08663512,662.11,660.89,0.30262222]
[1740134591291,1.08663512,662.1,660.89,0.30262222]
[1740134591492,1.08663512,662.09,660.89,0.30262222]
[1740134591688,1.08663512,662.08,660.89,0.30262222]
[1740134591884,1.08663512,662.07,660.89,0.30262222]
[1740134592088,1.08663512,662.06,660.89,0.30262222]
[1740134592294,1.08663512,662.05,660.89,0.30262222]
[1740134592590,1.08663512,662.04,660.89,0.30262222]
[1740134592786,1.08663512,662.03,660.89,0.30262222]
[1740134592991,1.08663512,662.02,660.89,0.30262222]
[1740134593185,1.08663512,662.01,660.89,0.30262222]
[1740134593387,1.08663512,662.0,660.89,0.30262222]
[1740134593586,1.08663512,661.99,660.89,0.30262222]
[1740134593787,1.08663512,661.98,660.89,0.30262222]
[1740134593992,1.08663512,661.97,660.89,0.30262222]
[1740134594191,1.08663512,661.96,660.89,0.30262222]
[1740134594391,1.08663512,661.95,660.89,0.30262222]
[1740134594587,1.08663512,661.94,660.89,0.30262222]
[1740134594790,1.08663512,661.93,660.89,0.30262222]
[1740134594990,1.08663512,661.92,660.89,0.30262222]
[1740134595189,1.08663512,661.91,660.89,0.30262222]
[1740134595386,1.08663512,661.9,660.89,0.30262222]
[1740134595587,1.08663512,661.89,660.89,0.30262222]
[1740134595785,1.08663512,661.88,660.89,0.30262222]
[1740134595991,1.08663512,661.87,660.89,0.30262222]
[1740134596187,1.08663512,661.86,660.89,0.30262222]
[1740134596391,1.08663512,661.85,660.89,0.30262222]
[1740134596587,1.08663512,661.84,660.89,0.30262222]
[1740134596790,1.08663512,661.83,660.89,0.30262222]
[1740134596995,1.08663512,661.82,660.89,0.30262222]
[1740134597293,1.08663512,661.81,660.89,0.30262222]
[1740134597490,1.08663512,661.8,660.89,0.30262222]
[1740134597694,1.08663512,661.79,660.89,0.30262222]
[1740134597994,1.08663512,661.78,660.89,0.30262222]
[1740134598294,0.30199163,662.27,660.89,0.30262222]
[1740134598295,1.08663512,661.77,660.89,0.30262222]
[1740134598495,1.08663512,661.76,660.89,0.30262222]
[1740134598794,1.08663512,661.75,660.89,0.30262222]
[1740134598996,1.08663512,661.74,660.89,0.30262222]
[1740134599194,1.08663512,661.73,660.89,0.30262222]
[1740134599395,1.08663512,661.72,660.89,0.30262222]
[1740134599595,1.08663512,661.71,660.89,0.30262222]
[1740134599796,1.08663512,661.7,660.89,0.30262222]
[1740134599997,1.08663512,661.69,660.89,0.30262222]